[Event "Czech Youth Championship Open 2023"]
[Site "Teplice"]
[Date "2023.03.13"]
[Round "3.3"]
[White "Zednicek, Filip"]
[Black "Juracak, David"]
[Result "0-1"]
[ECO "C29"]
[WhiteElo "1885"]
[BlackElo "1820"]
[Annotator "NA RC COMBH"]
[PlyCount "108"]
[EventDate "2023.03.09"]
[EventType "swiss"]
[EventCountry "CZE"]
[SourceTitle "playchess.com"]
[Source "ChessBase"]
[SourceQuality "1"]
[TimeControl "5400+30"]

1. e4 {[%emt 0:00:04]} e5 {[%emt 0:00:04]} 2. Nc3 {[%emt 0:00:05]} Nf6 {[%emt 0:00:05]} 3. f4 {[%emt 0:00:04]} d5 {[%emt 0:00:10]} 4. fxe5 {[%emt 0:00:05]} Nxe4 {[%emt 0:00:15]} 5. Nf3 {[%emt 0:00:07]} Be7 {[%emt 0:00:20]} 6. d4 {[%emt 0:02:34]} O-O {[%emt 0:01:21]} 7. Bd3 {[%emt 0:00:12]} Nxc3 {[%emt 0:00:28]} 8. bxc3 {[%emt 0:00:03]} c5 {[%emt 0:00:08]} 9. O-O {[%emt 0:00:25]} c4 {[%emt 0:00:13]} 10. Be2 {[%emt 0:00:08]} b5 {[%emt 0:00:49]} 11. Qe1 Nc6 {[%emt 0:11:07]} 12. Qg3 {[%emt 0:01:38]} Bf5 {[%emt 0:06:25]} 13. Rf2 {[%emt 0:04:19]} b4 {[%emt 0:10:09]} 14. Ne1 {[%emt 0:03:08]} Bh4 {[%emt 0:01:23]} 15. Qf3 {[%emt 0:00:05]} Bxf2+ {[%emt 0:02:39]} 16. Qxf2 {[%emt 0:00:18]} Bg6 {[%emt 0:00:50]} 17. cxb4 {[%emt 0:03:07]} Nxb4 {[%emt 0:00:27]} 18. Ba3 {[%emt 0:00:29]} Qa5 {[%emt 0:00:18]} 19. Qe3 {[%emt 0:00:45]} Rfb8 {[%emt 0:01:39]} 20. Bf3 {[%emt 0:03:25]} Rd8 {[%emt 0:12:21]} 21. Qc3 {[%emt 0:03:03]} Nc6 {[%emt 0:03:50]} 22. Qxa5 {[%emt 0:00:10]} Nxa5 {[%emt 0:00:07]} 23. Bd6 {[%emt 0:00:07]} Nc6 {[%emt 0:09:51]} 24. Bxd5 {[%emt 0:01:10]} Nxd4 {[%emt 0:00:08]} 25. Bxa8 {[%emt 0:00:12]} Rxa8 {[%emt 0:00:05]} 26. Rb1 {[%emt 0:04:50]} Nxc2 {[%emt 0:02:38]} 27. Nxc2 {[%emt 0:00:07]} Bxc2 {[%emt 0:00:05]} 28. Rb8+ {[%emt 0:00:47]} Rxb8 {[%emt 0:00:04]} 29. Bxb8 {[%emt 0:00:05]} a6 {[%emt 0:00:15]} 30. Kf2 {[%emt 0:00:50]} Bb3 {[%emt 0:01:28]} 31. a3 {[%emt 0:06:41]} c3 {[%emt 0:02:26]} 32. Ke3 {[%emt 0:00:57]} Bc4 {[%emt 0:00:30]} 33. Bd6 {[%emt 0:00:44]} c2 {[%emt 0:00:18]} 34. Kd2 {[%emt 0:00:02]} Bd3 {[%emt 0:00:13]} 35. Bb4 {[%emt 0:00:48]} Be4 {[%emt 0:00:39]} 36. a4 {[%emt 0:01:07]} g5 {[%emt 0:00:44]} 37. a5 {[%emt 0:01:13]} Kg7 {[%emt 0:00:07]} 38. Be7 {[%emt 0:01:10]} Kg6 {[%emt 0:00:13]} 39. h4 {[%emt 0:00:33]} gxh4 {[%emt 0:00:41]} 40. Bxh4 {[%emt 0:00:40]} Kf5 {[%emt 0:00:07]} 41. Bg3 {[%emt 0:00:09]} Ke6 {[%emt 0:00:34]} 42. Bf4 {[%emt 0:01:21]} Kd5 {[%emt 0:00:08]} 43. Kc1 {[%emt 0:05:40]} Kd4 {[%emt 0:01:53]} 44. Kd2 {[%emt 0:00:22]} h5 {[%emt 0:00:25]} 45. Bg3 {[%emt 0:03:11]} Kc4 {[%emt 0:00:09]} 46. Bf2 {[%emt 0:04:49]} Kb3 {[%emt 0:00:06]} 47. Kc1 {[%emt 0:01:46]} Bxg2 {[%emt 0:00:06]} 48. Bg3 {[%emt 0:00:41]} Be4 {[%emt 0:00:07]} 49. Be1 {[%emt 0:00:42]} Kc4 {[%emt 0:00:33]} 50. Bh4 {[%emt 0:06:51]} Kd4 {[%emt 0:00:15]} 51. Bf6 {[%emt 0:00:04]} Ke3 {[%emt 0:00:10]} 52. Bg5+ {[%emt 0:00:02]} Kf3 {[%emt 0:00:23]} 53. Kd2 {[%emt 0:00:17]} Kg4 {[%emt 0:00:12]} 54. Be3 {[%emt 0:00:03]} h4 {[%emt 0:00:40]} 0-1

[Event "Czech Youth Championship Open 2023"]
[Site "Teplice"]
[Date "2023.03.13"]
[Round "3.4"]
[White "Matejovsky, Ondrej"]
[Black "Hlavac, Rudolf"]
[Result "1/2-1/2"]
[ECO "B30"]
[WhiteElo "1931"]
[BlackElo "1985"]
[Annotator "TA"]
[PlyCount "78"]
[EventDate "2023.03.09"]
[EventType "swiss"]
[EventCountry "CZE"]
[SourceTitle "playchess.com"]
[Source "ChessBase"]
[SourceQuality "1"]
[TimeControl "5400+30"]

{[%evp 9,78,65,76,61,61,42,54,19,19,20,27,24,31,24,42,43,50,0,22,11,7,0,6,1,33,28,37,0,0,-9,12,11,34,0,7,0,0,0,0,0,37,48,32,0,0,2,3,0,0,0,0,0,0,0,0,0,0,0,0,0,0,0,20,0,7,0,7,0,0,0,0]} 1. e4 {[%emt 0:00:04]} c5 {[%emt 0:10:26]} 2. Nf3 {[%emt 0:00:10]} Nc6 {[%emt 0:00:18]} 3. Bb5 {[%emt 0:00:10]} Na5 {[%emt 0:00:11]} 4. O-O {[%emt 0:00:54]} a6 {[%emt 0:00:09]} 5. Be2 {[%emt 0:00:25]} e6 {[%emt 0:05:21]} 6. d4 {[%emt 0:04:24] B30: Sicilian: 2...Nc6 3 Bb5, lines without ...g6.} cxd4 {[%emt 0:01:00]} 7. Nxd4 {[%emt 0:01:08]} Qc7 {[%emt 0:00:33]} 8. b3 {[%emt 0:08:38] White is slightly better.} b5 {[%emt 0:02:22]} 9. Bb2 {[%emt 0:07:40]} Nf6 {[%emt 0:01:42] [#]} 10. Bd3 $146 {[%emt 0:11:10]} ({Predecessor:} 10. Bf3 Bb7 11. Re1 Be7 12. e5 Nd5 13. Nf5 exf5 14. Bxd5 Bxd5 15. Qxd5 O-O 16. Qd3 {1-0 Gonzales,S (2305)-Acosta,A (2325) COL-ch Columbia 1988 (13)}) 10... Bb7 {[%emt 0:00:53]} 11. Qe2 {[%emt 0:03:26]} Nc6 {[%emt 0:10:42]} 12. Nxc6 {[%emt 0:01:49]} Qxc6 {[%emt 0:06:33]} 13. f3 {[%emt 0:01:56]} (13. Nd2 $14) 13... Be7 {[%emt 0:04:17]} 14. Nd2 {[%emt 0:03:19][%cal Bb1d2,Bd2c4,Bc4e3,Be3c4][%mdl 32]} O-O {[%emt 0:01:00]} 15. a4 {[%emt 0:02:31]} b4 {[%emt 0:09:10]} 16. Kh1 {[%emt 0:05:39]} d6 {[%emt 0:05:38]} 17. Nc4 {[%emt 0:01:27]} Qc5 {[%emt 0:01:11] Inhibits Na5.} 18. Qe3 {[%emt 0:18:42]} (18. f4 $14 {might be stronger.}) 18... Qxe3 $11 {[%emt 0:04:45]} 19. Nxe3 {[%emt 0:00:03]} Nd7 {[%emt 0:02:02]} 20. Rad1 {[%emt 0:03:25]} Rfd8 {[%emt 0:07:10]} 21. Nc4 {[%emt 0:04:34]} a5 {[%emt 0:01:03]} 22. Bd4 {[%emt 0:06:01]} d5 {[%emt 0:01:46]} 23. exd5 {[%emt 0:00:57]} Bxd5 {[%emt 0:00:56]} 24. Ne3 {[%emt 0:02:35]} Bc5 {[%emt 0:02:28]} 25. Nxd5 {[%emt 0:04:58]} exd5 {[%emt 0:02:42] Black is weak on the light squares} 26. Bb5 {[%emt 0:01:00][%cal Od4g7]} Bxd4 {[%emt 0:00:35] The position is equal.} 27. Rxd4 {[%emt 0:01:08]} Nf6 {[%emt 0:00:57]} 28. Re1 {[%emt 0:00:54]} Rac8 {[%emt 0:02:00]} 29. Re2 {[%emt 0:00:56]} g6 {[%emt 0:00:52]} 30. Kg1 {[%emt 0:00:14]} Rc5 {[%emt 0:02:23]} 31. Kf2 {[%emt 0:00:59]} Rdc8 {[%emt 0:00:19]} 32. Rdd2 {[%emt 0:01:02]} Kf8 {[%emt 0:00:24]} 33. Ke1 {[%emt 0:00:43]} Nh5 {[%emt 0:02:18]} 34. g3 {[%emt 0:01:36]} Nf6 {[%emt 0:01:15]} 35. Kd1 {[%emt 0:00:29]} h6 {[%emt 0:01:56]} 36. Rd4 {[%emt 0:00:47]} Rc3 {[%emt 0:00:51]} 37. Rd3 {[%emt 0:00:12]} R3c5 {[%emt 0:00:24]} 38. Rd4 {[%emt 0:00:12]} Rc3 {[%emt 0:00:42]} 39. Rd3 {[%emt 0:00:12]} R3c5 {[%emt 0:00:04] Weighted Error Value: White=0.08 (flawless) /Black=0.07 (flawless)} 1/2-1/2

[Event "Czech Youth Championship Open 2023"]
[Site "Teplice"]
[Date "2023.03.13"]
[Round "3.5"]
[White "Pycha, Patrik"]
[Black "Pavlis, Matej"]
[Result "1-0"]
[ECO "B90"]
[WhiteElo "2029"]
[BlackElo "1868"]
[Annotator "TA"]
[PlyCount "145"]
[EventDate "2023.03.09"]
[EventType "swiss"]
[EventCountry "CZE"]
[SourceTitle "playchess.com"]
[Source "ChessBase"]
[SourceQuality "1"]
[TimeControl "5400+30"]

{[%evp 9,145,11,23,14,7,4,17,20,68,54,70,56,185,93,93,96,102,88,85,88,84,62,75,56,57,58,92,100,118,112,129,114,171,106,107,44,43,39,34,0,2,0,31,0,34,0,0,0,16,23,127,8,0,0,125,125,156,145,147,145,144,0,145,145,145,145,145,143,143,143,142,0,145,136,137,84,138,127,127,127,127,127,133,122,133,117,153,153,153,149,153,153,149,143,285,284,339,327,334,325,458,511,672,667,664,665,687,664,650,648,627,619,967,966,811,764,991,962,840,821,4732,2618,1900,1739,29978,29980,29984,29985,29985,29986,29984,29983,29980,29981,29985,29983,29984,29985]} 1. e4 {[%emt 0:00:03]} c5 {[%emt 0:00:10]} 2. Nf3 {[%emt 0:00:06]} d6 {[%emt 0:00:12]} 3. d4 {[%emt 0:00:07]} cxd4 {[%emt 0:00:06]} 4. Nxd4 {[%emt 0:00:05]} Nf6 {[%emt 0:00:11]} 5. Nc3 {[%emt 0:00:08]} a6 {[%emt 0:00:03]} 6. h4 {[%emt 0:02:39] B90: Sicilian Najdorf: Unusual White 6th moves, 6 Be3 Ng4 and 6 Be3 e5.} e5 {[%emt 0:03:09]} 7. Nb3 {[%emt 0:00:15]} Be6 {[%emt 0:00:49]} 8. f4 {[%emt 0:00:12][%cal Bf2f4,Bf4f5][%mdl 32] The position is equal.} Nbd7 {[%emt 0:04:10]} (8... exf4 $11 {should be considered.} 9. Bxf4 Nc6) 9. f5 $14 {[%emt 0:04:19]} Bxb3 {[%emt 0:00:10]} 10. axb3 {[%emt 0:00:12]} Nc5 {[%emt 0:00:23] [#]} (10... h5 $14) 11. Bg5 {[%emt 0:00:45]} (11. g4 $1 $18) 11... Be7 $16 {[%emt 0:00:26]} 12. Bxf6 {[%emt 0:00:31]} Bxf6 {[%emt 0:00:06] [#]} 13. Qg4 $146 {[%emt 0:02:38]} ({Predecessor:} 13. g3 Be7 14. Bc4 O-O 15. Qh5 Nd7 16. O-O-O Qa5 17. Nd5 Rae8 18. Kb1 b5 19. Bd3 {1-0 Karut,K (1835)-Skytte,R (1429) Krakow op-B 2022 (5)}) 13... h5 {[%emt 0:07:17]} 14. Qh3 {[%emt 0:00:55]} Rc8 {[%emt 0:00:45][%cal Od6d5]} 15. Bc4 {[%emt 0:03:05]} b5 {[%emt 0:02:25]} 16. Bd5 {[%emt 0:01:04]} b4 {[%emt 0:02:22]} 17. Nd1 {[%emt 0:01:47][%cal Bc3d1,Bd1e3,Be3c4][%mdl 32]} Be7 {[%emt 0:14:06]} 18. Ne3 {[%emt 0:03:14]} Rc7 {[%emt 0:05:48]} 19. Nc4 {[%emt 0:03:18]} Ra7 {[%emt 0:04:07] Black is weak on the light squares} 20. Qg3 {[%emt 0:00:59]} a5 {[%emt 0:08:04]} (20... Kf8 $16 {keeps fighting.} 21. Na5 Qb6) 21. Qf2 {[%emt 0:04:33]} (21. Qxg7 $18 Bf6 22. Qg3 (22. Bc6+ Ke7 $18)) 21... Qc7 {[%emt 0:01:46] Repels Bc6+} 22. Qd2 {[%emt 0:03:15]} (22. O-O $16) 22... Nd7 $1 $14 {[%emt 0:02:20]} 23. g3 {[%emt 0:03:48]} Nf6 {[%emt 0:01:03]} 24. Ne3 {[%emt 0:02:10]} Qc5 {[%emt 0:04:40]} 25. Ke2 {[%emt 0:05:31]} O-O {[%emt 0:02:24]} 26. Rhd1 {[%emt 0:00:49]} Rc8 {[%emt 0:00:29]} 27. Kf3 {[%emt 0:01:37]} Bd8 $1 {[%emt 0:04:42]} 28. Nc4 {[%emt 0:04:52][%cal Oc4d6]} Kf8 {[%emt 0:09:12]} 29. Qe3 {[%emt 0:02:52] Active counter play!} Ke7 {[%emt 0:03:03]} (29... Qc7 $11) 30. Qg5 {[%emt 0:04:54]} ({White should try} 30. Bxf7 $1 $16 {Black should prevent Be6.} Qxe3+ 31. Kxe3) 30... Kf8 $11 {[%emt 0:05:03] Hoping for ...Nxd5.} 31. Qe3 {[%emt 0:02:11]} Ke7 {[%emt 0:00:19] [#]} 32. Bxf7 $1 {[%emt 0:05:26][%mdl 576] Decoy} Ra6 {[%emt 0:11:47]} (32... Qxe3+ 33. Kxe3) 33. Bd5 $36 {[%emt 0:11:20][%mdl 2048] Black must now prevent Qg5. White is in control. Chess con chili.} Qxe3+ {[%emt 0:01:32]} 34. Kxe3 {[%emt 0:00:49]} Rc5 {[%emt 0:00:58]} 35. Bb7 {[%emt 0:04:19]} (35. Kf3 $16) 35... Ng4+ {[%emt 0:00:08]} (35... Ra7 $11 {keeps the balance.}) 36. Kf3 $16 {[%emt 0:01:00]} Ra7 {[%emt 0:00:11] [#]} 37. Bd5 {[%emt 0:01:49]} (37. Nxd6 Rxc2 38. Nc8+ Kf7 39. Bd5+ (39. Nxa7 $2 Rf2#) 39... Kf8 $19) 37... Bc7 {[%emt 0:00:50]} 38. Rd2 {[%emt 0:00:55]} Nf6 {[%emt 0:00:24]} 39. Ne3 {[%emt 0:02:02]} Bb6 {[%emt 0:00:41]} 40. Nc4 {[%emt 0:01:52]} Bc7 {[%emt 0:00:09]} 41. Ra4 {[%emt 0:00:32]} Rb5 {[%emt 0:01:45]} 42. Kg2 {[%emt 0:03:50]} (42. Rd3 $142) 42... Ng4 {[%emt 0:01:15]} (42... Nxd5 $142 43. exd5 (43. Rxd5 Rxd5 44. exd5 Kf6 $11) 43... Kf6) 43. Re2 {[%emt 0:01:07]} Nf6 {[%emt 0:00:08]} 44. Ne3 {[%emt 0:01:02]} Bb6 {[%emt 0:00:39]} 45. Bc4 {[%emt 0:00:23]} Rc5 {[%emt 0:00:27]} 46. Kf3 {[%emt 0:01:03]} Rc8 {[%emt 0:00:44]} 47. Be6 {[%emt 0:02:06]} Rc6 {[%emt 0:00:47]} 48. Nc4 {[%emt 0:00:36]} Bd8 {[%emt 0:01:21]} 49. Rd2 {[%emt 0:00:52]} Bc7 {[%emt 0:00:40]} 50. Rd1 {[%emt 0:00:41]} Rc5 {[%emt 0:00:29]} 51. Rda1 {[%emt 0:00:20]} Ra6 {[%emt 0:00:43]} (51... Rb7 $16 52. Ne3 (52. Nxa5 Rxc2 53. Ke3 Bxa5 $11) 52... Rb8) 52. Rxb4 $18 {[%emt 0:02:04] Strongly threatening Rb7.} d5 {[%emt 0:00:10]} 53. Bxd5 {[%emt 0:00:43]} Nxd5 {[%emt 0:00:09]} 54. exd5 {[%emt 0:00:14]} Rf6 {[%emt 0:00:09]} (54... Rxd5 $142 55. Ne3 (55. Rb7 Kd7 $18) 55... Rd4 56. Rxd4 exd4 57. Nd5+ Kd8 58. Nxc7 Kxc7) 55. Rb7 {[%emt 0:00:58][%csl LRa5,LRe5]} Kd8 {[%emt 0:00:37] [#]} 56. d6 {[%emt 0:01:09]} Bxd6 {[%emt 0:00:39]} 57. Rd1 {[%emt 0:00:18]} Kc8 {[%emt 0:00:17]} 58. Nxd6+ {[%emt 0:01:08]} Rxd6 {[%emt 0:00:03]} 59. Rxd6 {[%emt 0:00:08]} Kxb7 {[%emt 0:00:02][%mdl 4096] Endgame KR-KR} 60. c4 {[%emt 0:00:45]} a4 {[%emt 0:01:00]} 61. bxa4 {[%emt 0:01:04]} Rxc4 {[%emt 0:00:05]} 62. Re6 {[%emt 0:00:45]} Rxa4 {[%emt 0:00:38]} 63. Rxe5 {[%emt 0:00:10]} Rb4 {[%emt 0:00:18]} 64. Re7+ {[%emt 0:00:12]} Kc8 {[%emt 0:00:09]} 65. Rxg7 {[%emt 0:00:07]} Rb3+ {[%emt 0:00:08]} 66. Kf4 {[%emt 0:00:06] White threatens f6 and mate.} Rb4+ {[%emt 0:00:03]} 67. Kg5 {[%emt 0:00:09] White mates.} Rg4+ {[%emt 0:00:01]} 68. Kh6 {[%emt 0:00:16]} Rb4 {[%emt 0:00:14]} 69. Kxh5 {[%emt 0:00:07]} Rxb2 {[%emt 0:00:03]} 70. Re7 {[%emt 0:00:08]} Kd8 {[%emt 0:00:04]} 71. Re4 {[%emt 0:00:11]} Rg2 {[%emt 0:00:35]} 72. g4 {[%emt 0:00:06][%cal Bg3g4,Bg4g5][%mdl 32]} Kd7 {[%emt 0:00:08]} 73. g5 {[%emt 0:00:09] Weighted Error Value: White=0.20 (precise) /Black=0.29 (precise)} 1-0

[Event "Czech Youth Championship Open 2023"]
[Site "Teplice"]
[Date "2023.03.13"]
[Round "4.1"]
[White "Broz, Petr"]
[Black "Pavlis, Matej"]
[Result "1-0"]
[ECO "B50"]
[WhiteElo "1993"]
[BlackElo "1868"]
[Annotator "TA"]
[PlyCount "85"]
[EventDate "2023.03.09"]
[EventType "swiss"]
[EventCountry "CZE"]
[SourceTitle "playchess.com"]
[Source "ChessBase"]
[SourceQuality "1"]
[TimeControl "5400+30"]

{[%evp 9,85,9,8,8,12,10,51,51,36,54,47,38,113,117,109,120,108,7,0,0,0,-38,-22,-88,144,150,471,-104,0,0,376,362,424,445,407,79,86,-32,-30,-42,-32,-200,-204,-280,-281,-283,-268,-258,-261,-402,-350,-339,-369,-342,-350,-331,-331,-424,-415,-378,-345,-336,-454,-332,0,0,414,392,29985,29986,29979,29970,29993,543,29992,29991,29991,29992]} 1. e4 {[%emt 0:00:11]} c5 {[%emt 0:00:28]} 2. Nf3 {[%emt 0:00:19]} d6 {[%emt 0:00:30]} 3. Nc3 {[%emt 0:00:13]} Nf6 {[%emt 0:00:18]} 4. e5 {[%emt 0:00:19]} dxe5 {[%emt 0:05:45]} 5. Nxe5 {[%emt 0:00:23]} a6 {[%emt 0:00:22]} (5... e6 {is interesting.} 6. Bb5+ Bd7 7. Qf3 Qc7) 6. g3 {[%emt 0:04:52] B50: Sicilian: 2...d6, Miscellaneous.} Qc7 {[%emt 0:00:34]} 7. d4 {[%emt 0:10:09]} cxd4 {[%emt 0:00:35]} (7... e6 $5 {[%cal Rc5d4]}) 8. Qxd4 {[%emt 0:00:18] White is slightly better.} Nc6 {[%emt 0:01:03]} 9. Nxc6 {[%emt 0:00:08]} Qxc6 {[%emt 0:00:01]} 10. Rg1 {[%emt 0:00:11]} Bf5 {[%emt 0:05:34]} ({Black should play} 10... Bg4 $14) 11. Bg2 $16 {[%emt 0:00:45]} Qe6+ {[%emt 0:00:32]} 12. Be3 $1 {[%emt 0:01:36]} Rd8 {[%emt 0:05:20] [#]} (12... Bxc2 $2 13. Bxb7 Rd8 14. Qa7 $18 (14. Qc5 Nd7 $16)) 13. Qa4+ $146 {[%emt 0:00:42][%mdl 128] White attacks.} (13. Qb6 $6 Qxb6 14. Bxb6 Rd7 $11) (13. Qa7 $1 $16) ({Predecessor:} 13. Qb6 Qxb6 14. Bxb6 Rd7 15. Rd1 Bxc2 16. Rc1 Bf5 17. Na4 Rd6 18. Bxb7 e5 19. Bc5 {0-1 Lomasov,S (2528)-Tomczak,J (2605) Molodezhka-POL online blitz 2020}) 13... b5 $11 {[%emt 0:00:10]} 14. Nxb5 {[%emt 0:00:36]} axb5 {[%emt 0:00:34]} 15. Qxb5+ {[%emt 0:00:05]} Nd7 $1 {[%emt 0:00:32]} 16. O-O-O {[%emt 0:00:10]} (16. Rd1 $1 $11 {keeps the balance.}) 16... Rc8 $2 {[%emt 0:04:38]} (16... Rb8 $1 $17 {[%cal Rb8b5]} 17. Qa4 Rc8) 17. c3 $16 {[%emt 0:03:51][%cal Og3g4] aiming for g4!} Qe5 $2 {[%emt 0:03:55]} (17... Qf6 $16) 18. Qb3 $2 {[%emt 0:14:35] Active counter play!} (18. Rd5 $18 Qb8 19. Rxf5) 18... Be6 {[%emt 0:03:03]} (18... Qc7 $1 $17 19. Qa4 Qc4 20. Qxc4 Rxc4) 19. Bd5 $11 {[%emt 0:02:33] Hoping for Bf4.} Bxd5 $4 {[%emt 0:00:34][%mdl 8192]} (19... g5 $11 {and Black is okay.}) 20. Rxd5 $18 {[%emt 0:00:10]} Qe6 {[%emt 0:13:30]} 21. Rgd1 {[%emt 0:00:18]} Nb8 {[%emt 0:01:12]} 22. Qb5+ $2 {[%emt 0:04:04]} (22. Bb6 $18 {White threatens Rd8+ and mate.} Nc6 23. Qc4) 22... Nc6 $16 {[%emt 0:00:36]} 23. Bb6 {[%emt 0:00:17]} ({White should try} 23. Rd7 $1 $16 {And now Qb7 would win.} f6 24. Bf4) 23... f6 $15 {[%emt 0:00:43]} 24. f4 {[%emt 0:03:58] f5 would be deadly.} g6 {[%emt 0:00:45]} 25. g4 $2 {[%emt 0:00:05]} Kf7 $19 {[%emt 0:00:50]} (25... Qxg4 26. Rd8+ Kf7 27. Qc4+ Kg7 28. Rxc8 Qxc8 29. a4 $17) 26. f5 {[%emt 0:00:21]} Bh6+ {[%emt 0:00:10]} 27. Kb1 {[%emt 0:00:24]} Qe4+ {[%emt 0:00:06]} 28. Ka1 {[%emt 0:00:03]} Ne5 {[%emt 0:03:05]} 29. Bd4 {[%emt 0:03:13]} (29. R5d4 $142 Qc6 30. Qb3+ Kg7 31. Rb4) 29... Rb8 {[%emt 0:03:14]} ({Weaker is} 29... gxf5 30. Bxe5 Qc4 31. Bd4 $11) 30. Rxe5 {[%emt 0:00:31]} fxe5 {[%emt 0:01:24][%cal Bf6e5,Be5d4][%mdl 32]} 31. fxg6+ {[%emt 0:00:04]} Kxg6 {[%emt 0:03:22]} 32. Qa6+ {[%emt 0:01:15] [#]} Kf7 $1 {[%emt 0:03:34]} 33. Qxh6 {[%emt 0:04:27] Black must now prevent Rf1+.} exd4 {[%emt 0:01:10]} 34. Qh5+ {[%emt 0:02:14]} Kg7 {[%emt 0:03:01]} ({Don't go for} 34... Qg6 $2 35. Rf1+ Kg8 36. Qd5+ e6 37. Qxd4 $19) 35. Qg5+ {[%emt 0:03:46] [#]} Kf8 $1 {[%emt 0:00:39]} 36. Qh6+ {[%emt 0:00:07]} Ke8 $2 {[%emt 0:00:11]} (36... Kg8 $19 37. Qg5+ Kf7 38. Qh5+ Ke6 39. Qh6+ Qg6) 37. Qh5+ $11 {[%emt 0:00:05]} Qg6 $2 {[%emt 0:00:08][%mdl 8192]} (37... Kf8 $1 $11 {and Black has nothing to worry.} 38. Rf1+ Kg7 39. Qf7+ Kh6 40. Qh5+ Kg7 41. Qf7+ Kh6 42. Qh5+ Kg7) 38. Qe5 $18 {[%emt 0:00:08]} (38. cxd4 $2 {perishes.} Qxh5 39. gxh5 Rg8 $19) 38... Qc2 $2 {[%emt 0:27:15]} (38... Qb6 $18 39. Qxh8+ Kd7 40. Qxd4+ Qxd4 41. Rxd4+ Kc6) 39. Qxb8+ {[%emt 0:00:16]} Kd7 {[%emt 0:00:07]} 40. Qa7+ {[%emt 0:01:22]} (40. Qxh8 $2 Qxd1#) 40... Ke6 {[%emt 0:00:23]} 41. Qxd4 {[%emt 0:01:22]} (41. Re1+ $142 Qe4 42. Rxe4+ Kd5 43. Qb7+ Kd6 44. Rxe7 Kc5 45. Qc7+ Kb5 46. Re5+ Ka6 47. Ra5#) 41... Rb8 {[%emt 0:00:06][%csl Gb8][%cal Rc2b2]} 42. Re1+ {[%emt 0:00:20]} Kf7 {[%emt 0:01:15]} 43. Qf4+ {[%emt 0:00:05] An interesting game.   Weighted Error Value: White=0.61/Black=0.88} 1-0